Workbook

Sheet Index
B1: ='Input | General'!$B$1 -> TransGrid 2018-23 Draft decision - Capital expenditure sharing scheme model
B2: Index
C4: Model index
C6: Sheet Name | D6: Sheet Description
C7: Input | General | D7: Inputs NSP name, regulatory years for the prior and forecast regulatory control period etc.
C8: Input | Inflation and Disc Rate | D8: Inputs the inflation and discount rate
C9: Input | Reported Capex | D9: Inputs the reported capital expenditure from the prior regulatory control period as well as the AER's forecast etc.
C10: Calc | CESS Revenue Increments | D10: Calculates the CESS payments from the prior regulatory control period
C11: Output | Models | D11: Outputs the CESS revenue increments needed as a post tax revenue model input
C12: Lookup | Tables | D12: Includes the lookup tables used within the CESS model.
C14: End

Sheet Input | General
B1: =$D$6&" "&$D$8&" "&D7&" - "&"Capital expenditure sharing scheme model" -> TransGrid 2018-23 Draft decision - Capital expenditure sharing scheme model | G1: Key: | H1: Input | I1: Internal Link
B2: Input | General
B4: Input | General
C6: NSP Name | D6: TransGrid
C7: Determination stage | D7: Draft decision
C8: Determination years | D8: 2018-23
C10: Regulatory control period details
D11: Year 1 | E11: Year 2 | F11: Year 3 | G11: Year 4 | H11: Year 5
C12: Regulatory control period CESS applied in (regulatory years) | D12: 2014-15 | E12: 2015-16 | F12: 2016-17 | G12: 2017-18 | H12: n/a
C13: CESS to apply to this year's expenditure (Yes/No) | D13: No | E13: Yes | F13: Yes | G13: Yes | H13: No
C14: Actual or estimate year | D14: Actual | E14: Actual | F14: Estimate | G14: Estimate | H14: n/a
D16: Year 1 | E16: Year 2 | F16: Year 3 | G16: Year 4 | H16: Year 5
C17: Regulatory control period CESS revenue increment applied in (regulatory years) | D17: 2018-19 | E17: 2019-20 | F17: 2020-21 | G17: 2021-22 | H17: 2022-23
C18: Regulatory control period prior to CESS applied in (regulatory years) | D18: 2009-10 | E18: 2010-11 | F18: 2011-12 | G18: 2012-13 | H18: 2013-14
B20: End

Sheet Input | Inflation and Disc Rate
B1: ='Input | General'!$B$1 -> TransGrid 2018-23 Draft decision - Capital expenditure sharing scheme model | H1: Key: | I1: Input | J1: Internal Link
C2: Input | Inflation and Discount rate
C4: Input | Inflation
D6: Source | E6: Unit
F7: ='Lookup | Tables'!$E$27 -> 2013-14 | G7: ='Lookup | Tables'!$E$28 -> 2014-15 | H7: ='Lookup | Tables'!$E$29 -> 2015-16 | I7: ='Lookup | Tables'!$E$30 -> 2016-17 | J7: ='Lookup | Tables'!$E$31 -> 2017-18 | K7: ='Lookup | Tables'!$E$32 -> 2018-19 | L7: ='Lookup | Tables'!$E$33 -> 2019-20 | M7: ='Lookup | Tables'!$E$34 -> 2020-21 | N7: ='Lookup | Tables'!$E$35 -> 2021-22 | O7: ='Lookup | Tables'!$E$36 -> 2022-23 | P7: ='Lookup | Tables'!$E$37 -> 2023-24
C8: Actual CPI Inflation Rate | D8: TNSP | E8: Per cent | G8: 0.01717557252 | H8: 0.01688555347 | I8: 0.0147601476 | J8: 0.02
C9: Forecast CPI Inflation Rate | D9: TNSP | E9: Per cent | K9: 0.02390881249 | L9: 0.02390881249 | M9: 0.02390881249 | N9: 0.02390881249 | O9: 0.02390881249 | P9: 0.02390881249
C10: ="CPI Index (base year "&F7&")" -> CPI Index (base year 2013-14) | D10: TNSP | E10: Index | F10: 1
C11: CPI Index | D11: TNSP | E11: Index | G11: =IF(G7<>"",(F10*(1+G8)),"") -> 1.017175573 | H11: =IF(H7<>"",(G11*(1+H8)),"") -> 1.034351145 | I11: 1.049618321 | J11: 1.070610687 | K11: =IF(K7<>"",(J11*(1+K9)),"") -> 1.096207717 | L11: 1.122416742 | M11: 1.149252393 | N11: 1.176729653 | O11: 1.204863862 | P11: 1.233670726
C14: Actual CPI Inflation Rate | D14: AER | E14: Per cent | G14: 0.01717557252 | H14: 0.01688555347 | I14: 0.0147601476 | J14: 0.02
C15: Forecast CPI Inflation Rate | D15: AER | E15: Per cent | K15: 0.025 | L15: 0.025 | M15: 0.025 | N15: 0.025 | O15: 0.025 | P15: 0.025
C16: ="CPI Index (base year "&F7&")" -> CPI Index (base year 2013-14) | D16: AER | E16: Index | F16: 1
C17: CPI Index | D17: AER | E17: Index | G17: =IF(G7<>"",(F16*(1+G14)),"") -> 1.017175573 | H17: =IF(H7<>"",(G17*(1+H14)),"") -> 1.034351145 | I17: 1.049618321 | J17: 1.070610687 | K17: =IF(K7<>"",(J17*(1+K15)),"") -> 1.097375954 | L17: 1.124810353 | M17: 1.152930612 | N17: 1.181753877 | O17: 1.211297724 | P17: 1.241580167
C19: Input | Discount rate
D21: Source | E21: Unit | G21: ='Lookup | Tables'!$E$28 -> 2014-15 | H21: ='Lookup | Tables'!$E$29 -> 2015-16 | I21: ='Lookup | Tables'!$E$30 -> 2016-17 | J21: ='Lookup | Tables'!$E$31 -> 2017-18 | K21: ='Lookup | Tables'!$E$32 -> 2018-19 | L21: ='Lookup | Tables'!$E$33 -> 2019-20 | M21: ='Lookup | Tables'!$E$34 -> 2020-21 | N21: ='Lookup | Tables'!$E$35 -> 2021-22 | O21: ='Lookup | Tables'!$E$36 -> 2022-23
C22: Real Vanilla WACC | D22: AER | E22: Per cent | H22: 0.04267087649 | I22: 0.04187284015 | J22: 0.04082620464 | K22: 0.03889216208 | L22: 0.03889216208 | M22: 0.03889216208 | N22: 0.03889216208 | O22: 0.03889216208
C24: Nominal Vanilla WACC (fixed, real, time varying) | D24: Calculated | E24: Per cent | G24: =IF(AND('Input | Inflation and Disc Rate'!H8<>"",G22<>""),((1+G22)*(1+'Input | Inflation and Disc Rate'!H8)-1),"") ->  | H24: =IF(AND(H8<>"",H22<>""),((1+H22)*(1+H8)-1),"") -> 0.06027695133 | I24: =IF(AND(I8<>"",I22<>""),((1+I22)*(1+I8)-1),"") -> 0.05725103705 | J24: =IF(AND(J8<>"",J22<>""),((1+J22)*(1+J8)-1),"") -> 0.06164272873 | K24: =IF(AND(K15<>"",K22<>""),((1+K22)*(1+K15)-1),"") -> 0.06486446613 | L24: =IF(AND(L15<>"",L22<>""),((1+L22)*(1+L15)-1),"") -> 0.06486446613 | M24: =IF(AND(M15<>"",M22<>""),((1+M22)*(1+M15)-1),"") -> 0.06486446613 | N24: =IF(AND(N15<>"",N22<>""),((1+N22)*(1+N15)-1),"") -> 0.06486446613 | O24: =IF(AND(O15<>"",O22<>""),((1+O22)*(1+O15)-1),"") -> 0.06486446613
B26: End

Sheet Input | Reported Capex
B1: ='Input | General'!$B$1 -> TransGrid 2018-23 Draft decision - Capital expenditure sharing scheme model | I1: Key: | J1: Input | K1: Internal Link
B2: Input | Capex
B4: Input | Capex Allowance
D6: Source | E6: Unit | F6: Basis | H6: n/a | I6: 2015-16 | J6: 2016-17 | K6: 2017-18 | L6: n/a
C8: Total capex allowance | D8: AER | E8: $millions | F8: 2013-14 | I8: 304.6056259 | J8: 235.3295741 | K8: 219.7842303
C9: Total excludable capex | D9: AER | E9: $millions | F9: 2013-14 | I9: 2.657220061 | J9: 2.657220061 | K9: 2.657220061
C11: Total capex allowance applicable to CESS | D11: Calculated | E11: $millions | F11: 2013-14 | H11: =IF(H6="", "", H8-H9) -> 0 | I11: =IF(I6="", "", I8-I9) -> 301.9484058 | J11: =IF(J6="", "", J8-J9) -> 232.6723541 | K11: 217.1270103 | L11: 0
B13: Input | Actual / Estimate Capex
D15: Source | E15: Unit | F15: Basis | H15: n/a | I15: 2015-16 | J15: 2016-17 | K15: 2017-18 | L15: n/a
C17: Total capex | D17: AER | E17: $millions | F17: nominal | I17: 247.264833 | J17: 202.1043678 | K17: 206.2234488
C18: Total excludable capex | D18: AER | E18: $millions | F18: nominal | I18: 9.96833147 | J18: 11.43654486 | K18: 6.023501413
C20: Total actual capex applicable to CESS | D20: Calculated | E20: $millions | F20: nominal | H20: =IF(H15="", "", H17-H18) -> 0 | I20: =IF(I15="", "", I17-I18) -> 237.2965015 | J20: =IF(J15="", "", J17-J18) -> 190.6678229 | K20: =IF(K15="", "", K17-K18) -> 200.1999474 | L20: =IF(L15="", "", L17-L18) -> 0
B22: Input | Capex Deferred to following regulatory period
H24: ='Input | General'!D17 -> 2018-19 | I24: ='Input | General'!E17 -> 2019-20 | J24: ='Input | General'!F17 -> 2020-21 | K24: ='Input | General'!G17 -> 2021-22 | L24: ='Input | General'!H17 -> 2022-23
C26: Capex deferred and re-proposed | D26: TNSP | E26: $millions | F26: nominal | H26: 12.058486 | I26: 26.87732143 | J26: 0 | K26: 0 | L26: 0
C27: Capex deferred and re-proposed | D27: Calculated | E27: $millions | F27: 2013-14 | H27: =IF(H26<>"",H26/'Input | Inflation and Disc Rate'!K11,"") -> 11.00018346 | I27: =IF(I26<>"",I26/'Input | Inflation and Disc Rate'!L11,"") -> 23.94593775 | J27: =IF(J26<>"",J26/'Input | Inflation and Disc Rate'!M11,"") -> 0 | K27: =IF(K26<>"",K26/'Input | Inflation and Disc Rate'!N11,"") -> 0 | L27: =IF(L26<>"",L26/'Input | Inflation and Disc Rate'!O11,"") -> 0
C28: Capex deferred and re-proposed | D28: AER | E28: $millions | F28: nominal | H28: =IF(H26<>"",H27*'Input | Inflation and Disc Rate'!K17,"") -> 12.07133682 | I28: =IF(I26<>"",I27*'Input | Inflation and Disc Rate'!L17,"") -> 26.93463869 | J28: =IF(J26<>"",J27*'Input | Inflation and Disc Rate'!M17,"") -> 0 | K28: =IF(K26<>"",K27*'Input | Inflation and Disc Rate'!N17,"") -> 0 | L28: =IF(L26<>"",L27*'Input | Inflation and Disc Rate'!O17,"") -> 0
B30: End

Sheet Calc | CESS Revenue Increments
B1: ='Input | General'!$B$1 -> TransGrid 2018-23 Draft decision - Capital expenditure sharing scheme model | K1: Key: | L1: Input | M1: Internal Link
B2: Input | CESS Payments
B4: Calc | NPV of CESS payments
C6: Regulatory period 1
C7: Year | D7: n/a | E7: 2015-16 | F7: 2016-17 | G7: 2017-18 | H7: n/a
C8: Discount rate: | E8: ='Input | Inflation and Disc Rate'!H24 -> 0.06027695133 | F8: ='Input | Inflation and Disc Rate'!I24 -> 0.05725103705 | G8: ='Input | Inflation and Disc Rate'!J24 -> 0.06164272873
C9: Capex allowance | E9: ='Input | Reported Capex'!I11*'Input | Inflation and Disc Rate'!G17*(1+'Input | Inflation and Disc Rate'!H8)^0.5 -> 309.716756 | F9: ='Input | Reported Capex'!J11*'Input | Inflation and Disc Rate'!H17*(1+'Input | Inflation and Disc Rate'!I8)^0.5 -> 242.4345347 | G9: ='Input | Reported Capex'!K11*'Input | Inflation and Disc Rate'!I17*(1+'Input | Inflation and Disc Rate'!J8)^0.5 -> 230.1682103
C10: Actual capex | E10: ='Input | Reported Capex'!I20 -> 237.2965015 | F10: ='Input | Reported Capex'!J20 -> 190.6678229 | G10: ='Input | Reported Capex'!K20 -> 200.1999474
C11: Underspend | E11: =(E9-E10) -> 72.42025447 | F11: =(F9-F10) -> 51.76671174 | G11: 29.96826284
C12: Year 1 benefit | E12: =$D$11*E$8 -> 0 | F12: =$D$11*F$8 -> 0 | G12: =$D$11*G$8 -> 0
C13: Year 2 benefit | E13: =E11*((1+E$8)^(1/2)-1) -> 2.150700853 | F13: =$E$11*F$8 -> 4.146134672 | G13: =$E$11*G$8 -> 4.464182101
C14: Year 3 benefit | F14: =F11*((1+F$8)^(1/2)-1) -> 1.461225858 | G14: =$F$11*G$8 -> 3.191041369
C15: Year 4 benefit | G15: =G11*((1+G$8)^(1/2)-1) -> 0.9098509899
C16: Year 5 benefit
C17: Total financing benefit | E17: =SUM(E12:E16) -> 2.150700853 | F17: =SUM(F12:F16) -> 5.60736053 | G17: 8.565074461
C18: Discount factor (middle of year)* | E18: =(1+E$8)^(0.5)*(1+F$8)*(1+G$8) -> 1.155756035 | F18: =(1+F$8)^(0.5)*(1+G$8) -> 1.091609859 | G18: =(1+G$8)^(0.5) -> 1.030360485
C19: Discount factor (end of year)** | E19: =F19*(1+F$8) -> 1.122422876 | F19: =G19*(1+G$8) -> 1.061642729 | G19: 1
C20: NPV underspend | E20: =E11*E18 -> 83.70014614 | F20: 56.50905292 | G20: =G11*G18 -> 30.87811383
C21: NPV financing benefit | E21: =E17*E19 -> 2.413995836 | F21: 5.953013534 | G21: =G17*G19 -> 8.565074461
C23: Regulatory period 2
C24: Year | D24: ='Input | General'!$D$17 -> 2018-19 | E24: ='Input | General'!$E$17 -> 2019-20 | F24: ='Input | General'!$F$17 -> 2020-21 | G24: ='Input | General'!$G$17 -> 2021-22 | H24: ='Input | General'!$H$17 -> 2022-23
C25: Discount rate: | D25: ='Input | Inflation and Disc Rate'!$K$24 -> 0.06486446613 | E25: ='Input | Inflation and Disc Rate'!$L$24 -> 0.06486446613 | F25: ='Input | Inflation and Disc Rate'!$M$24 -> 0.06486446613 | G25: ='Input | Inflation and Disc Rate'!$N$24 -> 0.06486446613 | H25: ='Input | Inflation and Disc Rate'!$O$24 -> 0.06486446613
C26: Increase in forecast capex in regulatory period 2 attributable to capex deferred in regulatory period 1 | D26: ='Input | Reported Capex'!H28 -> 12.07133682 | E26: ='Input | Reported Capex'!I28 -> 26.93463869 | F26: ='Input | Reported Capex'!J28 -> 0 | G26: ='Input | Reported Capex'!K28 -> 0 | H26: ='Input | Reported Capex'!L28 -> 0
C27: Discount factor (middle of year 5) | D27: =1/(1+D25)^(0.5) -> 0.9690648307 | E27: =1/((1+E25)^(0.5)*(1+D25)) -> 0.9100358417 | F27: =1/((1+F25)^(0.5)*(1+E25)*(1+D25)) -> 0.8546025063 | G27: =1/((1+G25)^(0.5)*(1+F25)*(1+E25)*(1+D25)) -> 0.8025458014 | H27: =1/((1+H25)^(0.5)*(1+G25)*(1+F25)*(1+E25)*(1+D25)) -> 0.7536600449
C28: NPV of increase in forecast capex from deferred capex | D28: =D26*D27 -> 11.69790797 | E28: =E26*E27 -> 24.51148659 | F28: 0 | G28: 0 | H28: 0
C30: CESS calculation (post-adjustment)
C31: Total underspend (NPV) adjusted for deferrals | D31: =SUM(D20:H20)-SUM(D28:H28) -> 134.8779183
C32: Relevant sharing ratio | D32: 0.3
C33: Consumer share | D33: =(1-D32)*D31 -> 94.41454282
C34: NSP share | D34: =D32*D31 -> 40.4633755
C35: Total NSP financing benefit (NPV) | D35: =SUM(D21:H21) -> 16.93208383
C36: NPV of CESS payments (post-adjustment) | D36: =D34-D35 -> 23.53129167
B38: Calc | Total CESS Payments
D40: ='Input | General'!D17 -> 2018-19 | E40: ='Input | General'!E17 -> 2019-20 | F40: ='Input | General'!F17 -> 2020-21 | G40: ='Input | General'!G17 -> 2021-22 | H40: ='Input | General'!H17 -> 2022-23
C41: =CONCATENATE("CESS Payment Per Year ($", 'Output | Models'!F4," million)") -> CESS Payment Per Year ($2017-18 million) | D41: =-PMT('Input | Inflation and Disc Rate'!K22,5,'Calc | CESS Revenue Increments'!$D$36) -> 5.269326704 | E41: =-PMT('Input | Inflation and Disc Rate'!L22,5,'Calc | CESS Revenue Increments'!$D$36) -> 5.269326704 | F41: =-PMT('Input | Inflation and Disc Rate'!M22,5,'Calc | CESS Revenue Increments'!$D$36) -> 5.269326704 | G41: =-PMT('Input | Inflation and Disc Rate'!N22,5,'Calc | CESS Revenue Increments'!$D$36) -> 5.269326704 | H41: =-PMT('Input | Inflation and Disc Rate'!O22,5,'Calc | CESS Revenue Increments'!$D$36) -> 5.269326704
C43: =CONCATENATE("Total CESS Payment ($", 'Output | Models'!$F$4," million)") -> Total CESS Payment ($2017-18 million) | D43: =SUM(D41:H41) -> 26.34663352
C45: Notes
C46: * Capex is assumed to occur mid-year. Hence, a mid-year discount rate is required for capex allowance, actual capex and underspend.
C47: ** The financing benefit is calculated on an end of year basis. Hence, an end of year discount rate is required.
B49: End

Sheet Output | Models
B1: ='Input | General'!$B$1 -> TransGrid 2018-23 Draft decision - Capital expenditure sharing scheme model | K1: Key: | L1: Input | M1: Internal Link
B2: =[1]Index!$C$13 -> Output | Models
B4: Inputs for Post Tax Revenue Model | E4: $millions | F4: 2017-18 | J4: Note. The dollar base should be consistent with the post tax revenue model
C6: Revenue Adjustments | D6: Source | E6: Unit | F6: Basis | J6: ='Calc | CESS Revenue Increments'!D40 -> 2018-19 | K6: ='Calc | CESS Revenue Increments'!E40 -> 2019-20 | L6: ='Calc | CESS Revenue Increments'!F40 -> 2020-21 | M6: ='Calc | CESS Revenue Increments'!G40 -> 2021-22 | N6: ='Calc | CESS Revenue Increments'!H40 -> 2022-23 | O6: Total
C8: CESS increments as per NER 6A.5.4(a)(5) | D8: Calc | CESS Revenue Increments | E8: =$E$4 -> $millions | F8: =$F$4 -> 2017-18 | J8: ='Calc | CESS Revenue Increments'!D41 -> 5.269326704 | K8: ='Calc | CESS Revenue Increments'!E41 -> 5.269326704 | L8: ='Calc | CESS Revenue Increments'!F41 -> 5.269326704 | M8: ='Calc | CESS Revenue Increments'!G41 -> 5.269326704 | N8: ='Calc | CESS Revenue Increments'!H41 -> 5.269326704 | O8: =SUM(J8:N8) -> 26.34663352
B11: End

Sheet Lookup | Tables
B1: ='Input | General'!$B$1 -> TransGrid 2018-23 Draft decision - Capital expenditure sharing scheme model | I1: Key: | J1: Input | K1: Internal Link
B2: =[1]Index!$C$14 -> Lookup | Tables
B4: Unit Denominations
C6: Denominations | E6: Ref
C7: Dollars | E7: $dollars
C8: Thousands | E8: $000
C9: Millions | E9: $millions
C11: Actual | E11: Actual
C12: Estimate | E12: Estimate
C13: not applicable | E13: n/a
B16: Years
C18: =B16 -> Years | E18: Ref
C19: not applicable | E19: n/a
C20: nominal | E20: nominal
C21: 2007-08 | E21: 2007-08
C22: 2008-09 | E22: 2008-09
C23: 2009-10 | E23: 2009-10
C24: 2010-11 | E24: 2010-11
C25: 2011-12 | E25: 2011-12
C26: 2012-13 | E26: 2012-13
C27: 2013-14 | E27: 2013-14
C28: 2014-15 | E28: 2014-15
C29: 2015-16 | E29: 2015-16
C30: 2016-17 | E30: 2016-17
C31: 2017-18 | E31: 2017-18
C32: 2018-19 | E32: 2018-19
C33: 2019-20 | E33: 2019-20
C34: 2020-21 | E34: 2020-21
C35: 2021-22 | E35: 2021-22
C36: 2022-23 | E36: 2022-23
C37: 2023-24 | E37: 2023-24
B39: End
